bitfinex-derivatives/quotes_BTCF0:USTF0_20241217
["timestamp","ask_amount","ask_price","bid_price","bid_amount"]
[1734399433994,0.00011511,106210.0,106200.0,0.722447]
[1734399434187,0.3608,106230.0,106220.0,0.04706]
[1734399434387,0.3608,106230.0,106220.0,0.12366831]
[1734399434902,0.3608,106230.0,106220.0,0.28603336]
[1734399435200,7.974e-05,106240.0,106230.0,0.047055]
[1734399435395,7.974e-05,106240.0,106230.0,0.15586331]
[1734399437490,7.974e-05,106240.0,106230.0,0.18596331]
[1734399438099,0.01922233,106240.0,106230.0,0.18596331]
[1734399444097,7.974e-05,106240.0,106230.0,0.39353667]
[1734399444292,7.974e-05,106240.0,106230.0,0.62337162]
[1734399444498,0.00141262,106260.0,106250.0,0.047047]
[1734399444701,0.00141262,106260.0,106250.0,0.48445531]
[1734399444900,0.00141262,106260.0,106250.0,0.56106362]
[1734399445297,0.3608,106280.0,106270.0,0.047038]
[1734399445489,0.36087297,106280.0,106270.0,0.12372738]
[1734399449108,7.297e-05,106280.0,106270.0,0.12372738]
[1734399450696,7.297e-05,106280.0,106270.0,0.13625301]
[1734399450894,7.297e-05,106280.0,106270.0,0.49705301]
[1734399453711,7.297e-05,106280.0,106270.0,0.13625301]
[1734399454096,7.297e-05,106280.0,106270.0,0.49705301]
[1734399454296,7.297e-05,106280.0,106270.0,0.13625301]
[1734399455412,7.297e-05,106280.0,106270.0,0.49705301]
[1734399456315,7.297e-05,106280.0,106270.0,0.62801806]
[1734399460311,7.297e-05,106280.0,106270.0,0.13625301]
[1734399460517,7.297e-05,106280.0,106270.0,0.49705301]
[1734399462307,0.36087297,106280.0,106270.0,0.13625301]
[1734399462518,7.297e-05,106280.0,106270.0,0.13625301]
[1734399466919,0.40783,106290.0,106280.0,0.49992703]
[1734399467109,0.42069787,106290.0,106280.0,0.49992703]
[1734399467311,0.42069787,106290.0,106280.0,0.54696003]
[1734399467932,0.36087841,106290.0,106280.0,0.62356834]
[1734399468224,0.36087841,106290.0,106280.0,0.75453339]
[1734399468414,7.841e-05,106290.0,106280.0,0.75453339]
[1734399468618,7.841e-05,106290.0,106280.0,0.78543339]
[1734399469224,7.841e-05,106290.0,106280.0,1.14623339]
[1734399474928,7.841e-05,106290.0,106280.0,1.2228417]
[1734399475330,7.841e-05,106290.0,106280.0,1.14623339]
[1734399478532,7.841e-05,106290.0,106280.0,0.78543339]
[1734399479023,7.841e-05,106290.0,106280.0,1.14623339]
[1734399480823,7.841e-05,106290.0,106280.0,1.04548863]
[1734399481036,7.841e-05,106290.0,106280.0,1.01526834]
[1734399485524,7.841e-05,106290.0,106280.0,0.65446834]
[1734399490031,7.841e-05,106290.0,106280.0,0.62356834]
[1734399493634,0.36087841,106290.0,106280.0,0.49992703]
[1734399493820,0.4923844,106290.0,106280.0,0.49992703]
[1734399494130,0.89677822,106290.0,106280.0,0.49992703]
[1734399494321,0.82016991,106290.0,106280.0,0.49992703]
[1734399494528,0.52016991,106290.0,106280.0,0.49992703]
[1734399494832,0.82016991,106290.0,106280.0,0.49992703]
[1734399495135,0.52016991,106290.0,106280.0,0.49992703]
[1734399495429,0.82016991,106290.0,106280.0,0.49992703]
[1734399495635,0.52016991,106290.0,106280.0,0.49992703]
[1734399495822,0.82016991,106290.0,106280.0,0.49992703]
[1734399496019,0.82016991,106290.0,106280.0,0.54696003]
[1734399496020,0.52016991,106290.0,106280.0,0.54696003]
[1734399499234,0.49231663,106290.0,106280.0,0.54696003]
[1734399499831,0.60457913,106290.0,106280.0,0.54696003]
[1734399500032,0.50412023,106290.0,106280.0,0.54696003]
[1734399502132,0.61638273,106290.0,106280.0,0.54696003]
[1734399502739,0.50412023,106290.0,106280.0,0.54696003]
[1734399507043,0.53592023,106290.0,106280.0,0.54696003]
[1734399507542,0.89672023,106290.0,106280.0,0.54696003]
[1734399508036,0.9155539,106290.0,106280.0,0.54696003]
[1734399511040,0.5547539,106290.0,106280.0,0.54696003]
[1734399511538,0.5229539,106290.0,106280.0,0.62356834]
[1734399511848,0.5229539,106290.0,106280.0,0.54696003]
[1734399514043,0.5229539,106290.0,106280.0,0.57876003]
[1734399514436,0.44528763,106290.0,106280.0,0.65536834]
[1734399514640,0.36087841,106290.0,106280.0,0.71846834]
[1734399516141,7.841e-05,106290.0,106280.0,0.71846834]
[1734399516334,7.841e-05,106290.0,106280.0,0.64186003]
[1734399517637,0.36087841,106290.0,106280.0,0.64186003]
[1734399518035,0.40790741,106290.0,106280.0,0.57876003]
[1734399518240,0.48451572,106290.0,106280.0,0.49992703]
[1734399518441,0.60132494,106290.0,106280.0,0.49992703]
[1734399518636,2.16512494,106290.0,106280.0,0.49992703]
[1734399519845,2.27738744,106290.0,106280.0,0.49992703]
[1734399520651,2.20077913,106290.0,106280.0,0.49992703]
[1734399520949,0.77738744,106290.0,106280.0,0.49992703]
[1734399521252,0.69297822,106290.0,106280.0,0.49992703]
[1734399521546,2.19297822,106290.0,106280.0,0.49992703]
[1734399521741,2.22104385,106290.0,106280.0,0.49992703]
[1734399521942,2.3336963,106290.0,106280.0,0.49992703]
[1734399522545,2.22104385,106290.0,106280.0,0.49992703]
[1734399524253,0.72104385,106290.0,106280.0,0.49992703]
[1734399524744,0.69340852,106290.0,106280.0,0.49992703]
[1734399525249,0.61680021,106290.0,106280.0,0.49992703]
[1734399525749,0.57135782,106290.0,106280.0,0.49992703]
[1734399527440,0.53895782,106290.0,106280.0,0.49992703]
[1734399527839,0.62347412,106290.0,106280.0,0.49992703]
[1734399528677,0.62347057,106290.0,106280.0,0.49992703]
[1734399529353,0.53895782,106290.0,106280.0,0.49992703]
[1734399532450,0.53895782,106290.0,106280.0,0.53242703]
[1734399532839,0.6234719,106290.0,106280.0,0.53242703]
[1734399533452,0.6234719,106290.0,106280.0,0.57946003]
[1734399534052,0.6234744,106290.0,106280.0,0.57946003]
[1734399534551,0.53895782,106290.0,106280.0,0.57946003]
[1734399534751,0.62347515,106290.0,106280.0,0.57946003]
[1734399535361,0.53895782,106290.0,106280.0,0.57946003]
[1734399537646,0.62347092,106290.0,106280.0,0.57946003]
[1734399538253,0.26259245,106290.0,106280.0,0.57946003]
[1734399539253,0.26270961,106290.0,106280.0,0.57946003]
[1734399539953,0.67368101,106290.0,106280.0,0.57946003]
[1734399540148,0.58916797,106290.0,106280.0,0.57946003]
[1734399540551,0.47647517,106290.0,106280.0,0.57946003]
[1734399541258,0.58916008,106290.0,106280.0,0.57946003]
[1734399541648,0.58916008,106290.0,106280.0,0.49992703]
[1734399541950,0.62116008,106290.0,106280.0,0.49992703]
[1734399544854,0.54117517,106290.0,106280.0,0.49992703]
[1734399545257,0.65387472,106290.0,106280.0,0.49992703]
[1734399545556,0.79473086,106290.0,106280.0,0.49992703]
[1734399545757,0.68203131,106290.0,106280.0,0.49992703]
[1734399546353,2.18203131,106290.0,106280.0,0.49992703]
[1734399547457,0.68203131,106290.0,106280.0,0.49992703]
[1734399549051,0.20635991,106290.0,106280.0,0.55009843]
[1734399549357,0.20635991,106290.0,106280.0,0.59713143]
[1734399549358,0.31908682,106290.0,106280.0,0.59713143]
[1734399549557,0.17823068,106290.0,106280.0,0.62743143]
[1734399550063,0.58920208,106290.0,106280.0,0.57726003]
[1734399550866,0.58920208,106290.0,106280.0,0.53022703]
[1734399551550,0.53903068,106290.0,106280.0,0.57726003]
[1734399551751,0.08466001,106290.0,106280.0,1.03840283]
[1734399552154,0.21272691,106300.0,106290.0,0.047029]
[1734399552356,0.1,106300.0,106290.0,0.4884004]
[1734399553255,0.10012012,106300.0,106290.0,0.4884004]
[1734399553656,0.14714412,106300.0,106290.0,0.438229]
[1734399553857,0.14714412,106300.0,106290.0,0.1276004]
[1734399554064,0.10012012,106300.0,106290.0,0.5146568]
[1734399555760,0.10012012,106300.0,106290.0,0.1538568]
[1734399556560,0.50794412,106300.0,106290.0,0.077429]
[1734399557660,0.50794412,106300.0,106290.0,0.08872872]
[1734399558060,0.50794412,106300.0,106290.0,0.077429]
[1734399558271,0.46092012,106300.0,106290.0,0.077429]
[1734399558567,0.46092012,106300.0,106290.0,0.1538568]
[1734399558757,0.10012012,106300.0,106290.0,0.65378383]
[1734399559967,0.10012012,106300.0,106290.0,1.01458383]
[1734399560670,0.10012012,106300.0,106290.0,1.09101163]
[1734399560860,0.10012012,106300.0,106290.0,1.22197668]
[1734399561260,0.10012012,106300.0,106290.0,1.14554888]
[1734399562461,0.10012012,106300.0,106290.0,1.22197668]
[1734399564675,0.439111,106330.0,106320.0,0.047016]
[1734399564964,0.0313,106330.0,106320.0,0.1998716]
[1734399565160,0.0005,106330.0,106320.0,0.1998716]
[1734399565366,0.01087315,106340.0,106330.0,0.047011]
[1734399565559,0.3941,106350.0,106340.0,0.047007]
[1734399565759,0.05178435,106350.0,106340.0,0.1234348]
[1734399566974,0.41258435,106350.0,106340.0,0.047007]
[1734399567179,0.45958635,106350.0,106340.0,0.047007]
[1734399567561,0.53601415,106350.0,106340.0,0.047007]
[1734399568466,0.45958635,106350.0,106340.0,0.047007]
[1734399568859,0.47043597,106350.0,106340.0,0.047007]
[1734399572673,0.47093597,106350.0,106340.0,0.047007]
[1734399573569,0.47043597,106350.0,106340.0,0.047007]
[1734399574570,0.47093597,106350.0,106340.0,0.047007]
[1734399576567,0.47093597,106350.0,106330.0,0.01095164]
[1734399576763,0.078307,106340.0,106330.0,0.05796164]
[1734399576965,0.439107,106340.0,106330.0,0.05796164]
[1734399577180,0.472207,106340.0,106330.0,0.05796164]
[1734399577375,0.472207,106340.0,106330.0,7.866e-05]
[1734399577685,0.5486348,106340.0,106330.0,7.866e-05]
[1734399577977,2.0486348,106340.0,106330.0,7.866e-05]
[1734399578975,1.972207,106340.0,106330.0,7.866e-05]
[1734399579165,0.472207,106340.0,106330.0,7.866e-05]
[1734399579371,0.111407,106340.0,106330.0,0.12351746]
[1734399583078,0.47043697,106350.0,106340.0,0.047007]
[1734399583280,0.47043697,106350.0,106340.0,0.1234348]
[1734399583584,1.97043697,106350.0,106340.0,0.047007]
[1734399585573,0.47043697,106350.0,106340.0,0.047007]
[1734399586176,0.047007,106340.0,106330.0,0.04708966]
[1734399586486,0.11272691,106350.0,106330.0,0.40788966]
[1734399586676,0.047007,106340.0,106330.0,0.40788966]
[1734399587478,0.047007,106340.0,106330.0,0.04708966]
[1734399587479,0.04707957,106340.0,106330.0,0.04708966]
[1734399587682,0.04707957,106340.0,106330.0,7.866e-05]
[1734399587980,0.15980648,106340.0,106330.0,7.866e-05]
[1734399588186,0.04707957,106340.0,106330.0,7.866e-05]
[1734399588681,0.15980648,106340.0,106330.0,7.866e-05]
[1734399589777,0.22240648,106340.0,106330.0,7.866e-05]
[1734399590877,0.22240648,106340.0,106330.0,0.01084444]
[1734399591076,0.19100648,106340.0,106330.0,0.12351746]
[1734399591272,0.15980648,106340.0,106330.0,0.12351746]
[1734399591480,0.15980648,106340.0,106330.0,0.15651746]
[1734399592582,0.11279948,106340.0,106330.0,0.51731746]
[1734399592791,0.11279948,106340.0,106330.0,0.54911746]
[1734399593082,7.257e-05,106340.0,106330.0,0.54911746]
[1734399593888,0.11272691,106350.0,106330.0,0.84911746]
[1734399594188,0.11272691,106350.0,106340.0,0.4842348]
[1734399594381,0.11574398,106370.0,106340.0,1.06973465]
[1734399594578,0.01138218,106380.0,106370.0,0.046994]
[1734399594882,0.49509898,106380.0,106360.0,0.046996]
[1734399595084,0.032,106370.0,106360.0,0.046996]
[1734399595388,0.00010291,106380.0,106370.0,0.046994]
[1734399595683,0.00060291,106380.0,106370.0,0.407794]
[1734399596079,0.00060291,106380.0,106370.0,0.046994]
[1734399596276,0.04759191,106380.0,106370.0,0.046994]
[1734399596583,0.12401971,106380.0,106360.0,0.407797]
[1734399596789,0.079994,106370.0,106360.0,0.046997]
[1734399597478,1.579994,106370.0,106360.0,0.046997]
[1734399598385,1.579994,106370.0,106360.0,0.05759848]
[1734399598588,1.940794,106370.0,106360.0,0.05759848]
[1734399598976,1.9702278,106370.0,106350.0,0.3608]
[1734399599179,0.078698,106360.0,106350.0,0.047002]
[1734399599380,0.078698,106360.0,106350.0,0.407802]
[1734399599583,0.078698,106360.0,106350.0,0.047002]
[1734399599786,0.078698,106360.0,106350.0,0.407802]
[1734399600386,0.1551258,106360.0,106350.0,0.407802]
[1734399600580,0.0317,106360.0,106350.0,0.4842298]
[1734399601276,0.0317,106360.0,106350.0,0.047002]
[1734399602093,0.0317,106360.0,106350.0,0.407802]
[1734399602281,0.0317,106360.0,106350.0,0.047002]
[1734399602585,0.5159258,106360.0,106350.0,0.047002]
[1734399602774,0.047002,106350.0,106340.0,0.40921651]
[1734399602979,0.077702,106350.0,106340.0,0.40921651]
[1734399603989,0.5149298,106350.0,106340.0,0.00141051]
[1734399604192,0.047007,106340.0,106330.0,0.40788866]
[1734399605087,0.047007,106340.0,106330.0,0.04708866]
[1734399606688,1.547007,106340.0,106330.0,0.04708866]
[1734399606989,1.547007,106340.0,106330.0,7.866e-05]
[1734399608591,1.907807,106340.0,106330.0,7.866e-05]
[1734399608795,0.407807,106340.0,106330.0,0.04708966]
[1734399612895,0.047007,106340.0,106330.0,0.04708966]
[1734399613089,0.440407,106340.0,106330.0,0.04708966]
[1734399617389,0.079607,106340.0,106330.0,0.04708966]
[1734399620006,0.09861808,106340.0,106330.0,0.04708966]
[1734399620890,0.09861808,106340.0,106330.0,7.866e-05]
[1734399623207,0.09861808,106340.0,106320.0,0.42057862]
[1734399623500,0.09861808,106340.0,106320.0,0.41835216]
[1734399624397,0.09861808,106340.0,106320.0,0.41845124]
[1734399624596,0.01901108,106340.0,106330.0,0.1234388]
[1734399624798,0.01901108,106340.0,106330.0,0.4842388]
[1734399625100,0.0317,106350.0,106340.0,0.047007]
[1734399625301,0.0317,106350.0,106340.0,0.5158348]
[1734399628496,0.0500906,106350.0,106340.0,0.5158348]
[1734399630498,0.01367381,106360.0,106340.0,0.4688278]
[1734399630727,0.047493,106370.0,106360.0,0.046996]
[1734399631000,1.547493,106370.0,106360.0,0.046996]
[1734399631789,1.546993,106370.0,106360.0,0.046996]
[1734399631990,1.546993,106370.0,106350.0,0.4372278]
[1734399632205,0.0642,106360.0,106350.0,0.3608]
[1734399632501,0.111198,106360.0,106340.0,0.45274744]
[1734399632893,0.144498,106360.0,106340.0,0.45274744]
[1734399633096,0.144498,106360.0,106340.0,0.52917524]
[1734399633513,0.0642,106360.0,106350.0,0.047002]
[1734399633698,0.0642,106360.0,106350.0,0.1234298]
[1734399634002,0.111198,106360.0,106350.0,0.047002]
[1734399635489,0.111198,106360.0,106340.0,0.48357024]
[1734399635894,0.111198,106360.0,106340.0,0.40714244]
[1734399636500,0.047002,106350.0,106340.0,0.40574244]
[1734399636802,0.047007,106340.0,106330.0,0.3608]
[1734399637002,0.047011,106330.0,106320.0,0.36089908]
[1734399637711,0.047011,106330.0,106320.0,9.908e-05]
[1734399637902,0.1234388,106330.0,106320.0,9.908e-05]
[1734399638097,0.047011,106330.0,106320.0,9.908e-05]
[1734399639394,0.20091714,106360.0,106320.0,0.64471973]
[1734399639395,0.51471914,106360.0,106320.0,0.64471973]
[1734399639598,0.079503,106350.0,106340.0,0.1234348]
[1734399639908,0.079503,106350.0,106340.0,0.047007]
[1734399641602,0.0325,106350.0,106340.0,0.047007]
[1734399645404,0.1559298,106350.0,106340.0,0.06410769]
[1734399646313,1.6559298,106350.0,106340.0,0.06410769]
[1734399646806,1.579502,106350.0,106340.0,0.06410769]
[1734399647004,1.6559298,106350.0,106340.0,0.06410769]
[1734399648603,1.579502,106350.0,106340.0,0.06410769]
[1734399650411,1.579502,106350.0,106340.0,0.42490769]
[1734399651115,1.579502,106350.0,106340.0,0.06410769]
[1734399651307,0.5167298,106350.0,106330.0,0.04701]
[1734399651608,0.047011,106330.0,106320.0,0.04711408]
[1734399652003,0.080111,106330.0,106320.0,0.04711408]
[1734399653813,0.080111,106330.0,106320.0,0.40791408]
[1734399654412,0.080111,106330.0,106320.0,0.04711408]
[1734399655609,0.080111,106330.0,106320.0,0.40791408]
[1734399655916,0.080111,106330.0,106320.0,0.04711408]
[1734399656310,0.080111,106330.0,106320.0,0.40791408]
[1734399656509,0.080111,106330.0,106320.0,0.04711408]
[1734399656708,0.080111,106330.0,106320.0,0.40791408]
[1734399657308,0.080111,106330.0,106320.0,0.04711408]
[1734399658019,0.080111,106330.0,106320.0,0.40791408]
[1734399658410,0.080111,106330.0,106320.0,0.04711408]
[1734399658618,0.080111,106330.0,106320.0,0.40791408]
[1734399659623,0.09664412,106330.0,106320.0,0.40791408]
[1734399660411,0.09664412,106330.0,106320.0,0.04711408]
[1734399665726,0.11536279,106330.0,106320.0,0.04711408]
[1734399668221,0.19179059,106330.0,106320.0,0.04711408]
[1734399668427,0.19179059,106330.0,106320.0,9.908e-05]
[1734399669427,0.55259059,106330.0,106320.0,9.908e-05]
[1734399670025,0.19179059,106330.0,106320.0,9.908e-05]
[1734399670223,0.19179059,106330.0,106320.0,0.04711508]
[1734399671733,0.55259059,106330.0,106320.0,9.908e-05]
[1734399672313,0.63699956,106330.0,106320.0,9.908e-05]
[1734399672832,0.74960525,106330.0,106320.0,9.908e-05]
[1734399673215,0.66519628,106330.0,106320.0,9.908e-05]
[1734399673814,0.74960517,106330.0,106320.0,9.908e-05]
[1734399675725,0.66519628,106330.0,106320.0,9.908e-05]
[1734399675923,0.58876848,106330.0,106320.0,9.908e-05]
[1734399676128,0.66519628,106330.0,106320.0,9.908e-05]
[1734399676324,0.74960885,106330.0,106320.0,9.908e-05]
[1734399676923,0.66519628,106330.0,106320.0,9.908e-05]
[1734399677523,0.58876848,106330.0,106320.0,9.908e-05]
[1734399677834,0.66519628,106330.0,106320.0,9.908e-05]
[1734399682337,0.58876848,106330.0,106320.0,9.908e-05]
[1734399683540,0.22796848,106330.0,106320.0,9.908e-05]
[1734399683940,0.22796848,106330.0,106320.0,0.04711508]
[1734399684439,0.22796848,106330.0,106320.0,9.908e-05]
[1734399685141,1.72796848,106330.0,106320.0,9.908e-05]
[1734399685438,1.62913881,106330.0,106320.0,0.56076968]
[1734399685638,0.00012024,106330.0,106320.0,0.99173473]
[1734399685935,0.00012024,106330.0,106320.0,0.75163059]
[1734399686144,0.00012024,106330.0,106320.0,0.88259564]
[1734399686336,0.00012024,106330.0,106320.0,0.80616784]
[1734399686928,0.00012024,106330.0,106320.0,0.88259564]
[1734399687236,0.00012024,106330.0,106320.0,0.67860693]
[1734399687628,0.00012024,106330.0,106320.0,0.75503473]
[1734399688239,0.00012024,106330.0,106320.0,0.67860693]
[1734399693138,0.00012024,106330.0,106320.0,0.69361238]
[1734399694939,0.00012024,106330.0,106320.0,0.77004018]
[1734399695146,0.00012024,106330.0,106320.0,0.69361238]
[1734399697834,0.00012024,106330.0,106320.0,0.61718458]
[1734399698033,0.00012024,106330.0,106320.0,0.58588458]
[1734399698346,0.00012024,106330.0,106320.0,0.63031238]
[1734399698643,0.00012024,106330.0,106320.0,0.55388458]
[1734399698835,0.00012024,106330.0,106320.0,0.42291953]
[1734399699039,0.00012024,106330.0,106320.0,0.06211953]
[1734399699040,0.18675904,106330.0,106320.0,0.06211953]
[1734399699246,0.14043124,106330.0,106320.0,0.04711408]
[1734399699447,0.66213873,106330.0,106320.0,0.04711408]
[1734399700138,0.66213873,106330.0,106310.0,0.3608]
[1734399700346,0.66214273,106330.0,106310.0,0.407819]
[1734399702540,0.3608,106320.0,106310.0,0.047019]
[1734399702848,0.04702,106310.0,106300.0,0.04710207]
[1734399703055,0.10932,106310.0,106300.0,0.04710207]
[1734399703550,0.14192,106310.0,106300.0,0.04710207]
[1734399705043,0.0949,106310.0,106300.0,0.12352987]
[1734399705450,0.0642,106310.0,106300.0,0.61529492]
[1734399723866,6.9e-07,106320.0,106300.0,0.96231892]
[1734399724054,1e-06,106340.0,106330.0,0.047011]
[1734399724253,0.0629,106370.0,106360.0,0.046998]
[1734399724449,0.13099153,106380.0,106370.0,0.046994]
[1734399724654,0.18546662,106390.0,106380.0,0.046989]
[1734399724655,0.22021628,106390.0,106380.0,0.046989]
[1734399724862,0.10773083,106390.0,106380.0,0.4842168]
[1734399725057,0.10782943,106390.0,106380.0,0.4842168]
[1734399725262,0.0938986,106390.0,106380.0,0.4842168]
[1734399725452,9.86e-05,106390.0,106380.0,0.4842168]
[1734399726159,9.86e-05,106390.0,106380.0,0.407789]
[1734399726663,0.1082836,106390.0,106380.0,0.046989]
[1734399727366,1.6082836,106390.0,106380.0,0.046989]
[1734399728052,2.0455114,106390.0,106370.0,0.046993]
[1734399728256,0.046989,106380.0,106370.0,0.046993]
[1734399729467,1.6082836,106390.0,106380.0,0.046989]
[1734399729667,1.9690836,106390.0,106370.0,0.4842208]
[1734399729869,1.6082836,106390.0,106370.0,0.4842208]
[1734399730073,1.9690836,106390.0,106370.0,0.4842208]
[1734399730368,1.6082836,106390.0,106370.0,0.4842208]
[1734399730563,0.1082836,106390.0,106370.0,0.407793]
[1734399730960,1.5,106380.0,106370.0,0.4842208]
[1734399731469,1.5,106380.0,106370.0,0.1234208]
[1734399731658,1.546989,106380.0,106370.0,0.046993]
[1734399733658,0.046994,106370.0,106360.0,7.532e-05]
[1734399733863,0.5168218,106370.0,106360.0,7.532e-05]
[1734399734769,0.8168218,106370.0,106330.0,0.19232877]
[1734399734967,0.4842348,106340.0,106320.0,0.407815]
[1734399735168,0.1559388,106330.0,106320.0,0.407815]
[1734399735358,0.1868388,106330.0,106320.0,0.407815]
[1734399735558,0.110411,106330.0,106320.0,0.407815]
[1734399735766,0.11050793,106330.0,106320.0,0.407815]
[1734399737063,0.47130793,106330.0,106320.0,0.047015]
[1734399737266,0.11050793,106330.0,106320.0,0.047015]
[1734399737473,0.18693573,106330.0,106310.0,0.40790175]
[1734399738065,0.54773573,106330.0,106310.0,0.40790175]
[1734399738869,0.54773573,106330.0,106310.0,0.04710175]
[1734399739069,0.54773573,106330.0,106310.0,0.40790175]
[1734399742174,0.54773573,106330.0,106310.0,0.04710175]
[1734399742476,0.047016,106320.0,106310.0,0.40790175]
[1734399743878,0.047016,106320.0,106310.0,0.04710175]
[1734399744270,0.047016,106320.0,106310.0,0.40790175]
[1734399744983,0.047016,106320.0,106310.0,0.40840175]
[1734399746175,0.047016,106320.0,106310.0,0.00058275]
[1734399746378,0.4842438,106320.0,106310.0,0.00058275]
[1734399747488,0.1234438,106320.0,106310.0,0.00058275]
[1734399748177,0.1234438,106320.0,106310.0,0.04760275]
[1734399749080,0.1234438,106320.0,106310.0,0.1785678]
[1734399749683,0.1234438,106320.0,106310.0,0.04760275]
[1734399751179,0.1234438,106320.0,106310.0,0.40840275]
[1734399751581,0.4842438,106320.0,106310.0,0.00058275]
[1734399752080,0.5606716,106320.0,106310.0,0.00058275]
[1734399752279,0.57408952,106320.0,106310.0,0.00058275]
[1734399752782,0.04702,106310.0,106300.0,0.407824]
[1734399753083,0.04702,106310.0,106300.0,0.3608]
[1734399753084,1.6552478,106310.0,106300.0,0.3608]
[1734399753775,1.6552478,106310.0,106300.0,0.407824]
[1734399754890,1.57882,106310.0,106300.0,0.408324]
[1734399755783,0.07882,106310.0,106300.0,0.408324]
[1734399759911,0.07882,106310.0,106300.0,0.407824]
[1734399765314,0.09780845,106310.0,106300.0,0.407824]
[1734399767512,0.2102939,106310.0,106300.0,0.407824]
[1734399768098,0.09780845,106310.0,106300.0,0.407824]
[1734399769520,0.17423625,106310.0,106300.0,0.3608]
[1734399770710,0.2867217,106310.0,106300.0,0.3608]
[1734399770903,0.17423625,106310.0,106300.0,0.3608]
[1734399771298,0.2867217,106310.0,106300.0,0.3608]
[1734399771917,0.047024,106300.0,106290.0,0.40790149]
[1734399773308,0.1234518,106300.0,106290.0,0.40790149]
[1734399773510,0.1554518,106300.0,106290.0,0.40790149]
[1734399775607,0.079024,106300.0,106290.0,0.40790149]
[1734399778018,0.11248545,106310.0,106300.0,0.17798905]
[1734399778215,0.11248545,106310.0,106300.0,0.68021685]
[1734399778522,0.11248545,106310.0,106300.0,0.71071685]
[1734399779910,0.11248545,106310.0,106300.0,0.63428905]
[1734399781212,0.11248545,106310.0,106300.0,0.64647912]
[1734399782206,0.15950145,106320.0,106300.0,0.64647912]
[1734399782510,0.15950145,106320.0,106310.0,0.40782]
[1734399783222,0.23592925,106320.0,106310.0,0.40782]
[1734399784910,0.1234438,106320.0,106310.0,0.40782]
[1734399785611,1.547016,106320.0,106310.0,0.40782]
[1734399786715,0.047016,106320.0,106310.0,0.40782]
[1734399789822,0.1234438,106320.0,106310.0,0.40782]
[1734399792326,0.1234438,106320.0,106310.0,0.04702]
[1734399792528,0.1234438,106320.0,106310.0,0.40782]
[1734399793131,0.04702,106310.0,106300.0,0.3608]
[1734399793322,0.1870478,106310.0,106300.0,0.3608]
[1734399793521,0.11062,106310.0,106300.0,0.407824]
[1734399794631,0.11062,106310.0,106300.0,0.3608]
[1734399795128,0.11062,106310.0,106290.0,0.4206126]
[1734399795129,0.1870478,106310.0,106290.0,0.4206126]
[1734399795829,0.1870478,106310.0,106290.0,0.0598126]
[1734399796428,0.047024,106300.0,106290.0,0.0598126]
[1734399797528,0.047024,106300.0,106290.0,0.4206126]
[1734399797830,0.047024,106300.0,106290.0,0.36087349]
[1734399798140,0.047033,106280.0,106270.0,0.3608]
[1734399798432,0.1234608,106280.0,106260.0,0.61616679]
[1734399798824,0.047033,106280.0,106260.0,0.61616679]
[1734399799022,0.1234608,106280.0,106270.0,0.00061052]
[1734399800023,0.1234608,106280.0,106270.0,0.00011052]
[1734399801131,0.1550608,106280.0,106270.0,0.00061052]
[1734399802033,0.1550608,106280.0,106270.0,0.00011052]
[1734399803232,0.1550608,106280.0,106270.0,0.00061052]
[1734399804129,0.1550608,106280.0,106270.0,0.00011052]
[1734399805033,0.1550608,106280.0,106270.0,0.00061052]
[1734399806235,0.1550608,106280.0,106270.0,0.00011052]
[1734399806736,0.16701326,106280.0,106270.0,0.00011052]
[1734399807037,0.16701326,106280.0,106270.0,0.00061052]
[1734399808135,0.16701326,106280.0,106270.0,0.00011052]
[1734399809022,0.16701326,106280.0,106270.0,0.00061052]
[1734399811034,0.18592525,106280.0,106270.0,0.00011052]
[1734399811939,0.20987603,106280.0,106270.0,0.00011052]
[1734399819645,0.10949745,106280.0,106270.0,0.00011052]
[1734399819827,0.10949745,106280.0,106270.0,0.04714852]
[1734399819828,0.20987603,106280.0,106270.0,0.04714852]
[1734399821040,0.0636,106290.0,106270.0,0.58910286]
[1734399821237,0.01878596,106300.0,106290.0,0.047029]
[1734399821442,0.19241129,106310.0,106300.0,0.047024]
[1734399821641,0.19241129,106310.0,106300.0,0.407824]
[1734399822031,0.21914169,106310.0,106300.0,0.407824]
[1734399823141,0.23026023,106310.0,106300.0,0.407824]
[1734399824042,0.23076023,106310.0,106300.0,0.407824]
[1734399824445,0.24965341,106310.0,106300.0,0.407824]
[1734399825042,0.24915341,106310.0,106300.0,0.407824]
[1734399826051,0.24965341,106310.0,106300.0,0.407824]
[1734399828544,1.74965341,106310.0,106300.0,0.407824]
[1734399829144,0.15781287,106310.0,106300.0,0.407824]
[1734399834262,1.65781287,106310.0,106300.0,0.407824]
[1734399834654,1.58139318,106310.0,106300.0,0.407824]
[1734399834856,0.15781287,106310.0,106300.0,0.407824]
[1734399835666,0.23663287,106310.0,106300.0,0.407824]
[1734399839374,0.23663287,106310.0,106300.0,0.047024]
[1734399842369,0.047024,106300.0,106290.0,0.047028]
[1734399842579,0.047024,106300.0,106280.0,0.407832]
[1734399842580,0.047029,106290.0,106280.0,0.407832]
[1734399842871,0.29796838,106290.0,106280.0,0.3608]
[1734399843072,0.29796838,106290.0,106270.0,0.40844752]
[1734399843377,0.12345269,106280.0,106270.0,0.40844752]
[1734399843978,0.1474158,106280.0,106270.0,0.40844752]
[1734399844875,0.55851691,106280.0,106270.0,0.00061052]
[1734399845077,0.50832551,106280.0,106270.0,0.27976683]
[1734399845870,0.50832551,106280.0,106270.0,0.50308344]
[1734399846078,0.4844363,106280.0,106270.0,0.22392713]
[1734399847076,0.1236363,106280.0,106270.0,0.22392713]
[1734399847272,0.1236363,106280.0,106270.0,0.58472713]
[1734399847474,0.1236363,106280.0,106270.0,0.86388344]
[1734399847673,0.1236363,106280.0,106270.0,0.50308344]
[1734399848079,0.13500718,106280.0,106270.0,0.22392713]
[1734399849373,0.13500718,106280.0,106270.0,0.50308344]
[1734399849577,0.13500718,106280.0,106270.0,0.64056683]
[1734399849877,0.13500718,106280.0,106270.0,0.86364963]
[1734399850383,0.01148059,106280.0,106270.0,0.89506347]
[1734399850707,0.01148059,106280.0,106270.0,0.81856988]
[1734399850980,0.01148059,106280.0,106270.0,0.8744112]
[1734399852174,0.01148059,106280.0,106270.0,0.53891357]
[1734399852482,0.01148059,106280.0,106270.0,0.81759401]
[1734399852869,0.00010971,106280.0,106270.0,0.8739112]
[1734399853185,0.00010971,106280.0,106270.0,0.9060112]
[1734399854682,0.00010971,106280.0,106270.0,0.77504615]
[1734399854889,0.04714271,106280.0,106270.0,0.77504615]
[1734399855084,0.04714271,106280.0,106270.0,0.74294615]
[1734399857086,0.06602885,106280.0,106270.0,0.74294615]
[1734399857474,0.06602885,106280.0,106270.0,0.38214615]
[1734399857676,0.06602885,106280.0,106270.0,0.74294615]
[1734399859290,0.01899585,106280.0,106270.0,0.74294615]
[1734399859784,0.50332244,106280.0,106270.0,0.27890331]
[1734399860085,0.06602885,106280.0,106270.0,0.27890331]